bitfinex/quotes_SOLUSD_20241202
["timestamp","ask_amount","ask_price","bid_price","bid_amount"]
[1733109259964,1.06288658,234.14,234.05,12.8389]
[1733109260280,23.776884,234.13,234.0,12.3221]
[1733109260459,23.776884,234.11,234.0,12.3221]
[1733109260804,1.06288658,234.1,234.0,12.3221]
[1733109261177,23.776884,234.09,234.0,12.3221]
[1733109261372,1.06288658,234.08,234.0,12.3221]
[1733109263687,23.776884,234.07,234.0,12.3221]
[1733109263884,1.06288658,234.06,234.0,12.3221]
[1733109264591,32.692,234.03,233.85,70.0]
[1733109264758,24.83977058,234.02,233.86,0.85279566]
[1733109265168,24.83977058,234.02,233.83,0.8528671]
[1733109266177,24.83977058,234.02,233.85,20.0]
[1733109266966,24.83977058,234.02,233.86,0.85287257]
[1733109268084,24.83977058,234.02,233.88,70.0]
[1733109268266,1.06288658,234.02,233.89,0.85264089]
[1733109268460,1.06288658,234.02,233.9,43.0388]
[1733109268666,20.0,234.04,233.91,0.85260431]
[1733109268866,1.06288658,234.03,233.91,0.85260431]
[1733109269369,21.06288658,234.06,233.91,70.85260431]
[1733109269771,1.06288658,234.08,233.94,90.0]
[1733109269968,1.06288658,234.08,233.95,0.852401]
[1733109271478,1.06288658,234.11,233.95,0.852401]
[1733109271661,1.06288658,234.14,233.95,0.852401]
[1733109272085,23.776884,234.13,233.95,20.852401]
[1733109272383,23.776884,234.11,233.97,20.0]
[1733109272588,1.06288658,234.14,234.02,20.0]
[1733109272791,1.06288658,234.14,234.03,0.85217171]
[1733109272993,1.06288658,234.19,234.03,0.85217171]
[1733109274478,1.06288658,234.23,234.09,12.3433]
[1733109274788,1.06288658,234.23,234.1,31.56435054]
[1733109276982,1.06288658,234.25,234.1,31.56435054]
[1733109278401,23.776884,234.24,234.1,30.7124]
[1733109278592,20.0,234.21,234.1,30.7124]
[1733109278773,1.06288658,234.2,234.1,30.7124]
[1733109280487,1.06288658,234.22,234.1,30.7124]
[1733109281274,1.06288658,234.22,234.1,30.4428]
[1733109283303,1.06288658,234.22,234.11,0.85199203]
[1733109283676,1.06288658,234.25,234.12,23.776884]
[1733109284001,1.06288658,234.25,234.11,23.776884]
[1733109284587,1.06288658,234.25,234.1,31.29468542]
[1733109284796,20.0,234.27,234.1,30.4428]
[1733109284797,21.06288658,234.26,234.1,30.4428]
[1733109286305,1.06288658,234.26,234.1,30.4428]
[1733109287379,21.06288658,234.26,234.1,30.4428]
[1733109287580,21.06288658,234.26,234.11,0.85197598]
[1733109287882,1.06288658,234.26,234.11,0.85197598]
[1733109288084,24.83977058,234.29,234.11,0.85197598]
[1733109288311,29.83977058,234.29,234.1,30.4428]
[1733109288504,29.83977058,234.29,234.1,31.29477471]
[1733109289106,20.0,234.26,234.1,31.29477471]
[1733109289402,1.06288658,234.25,234.1,31.29477471]
[1733109291690,1.06288658,234.25,234.11,23.776884]
[1733109291887,1.06288658,234.25,234.13,23.776884]
[1733109292096,1.06288658,234.29,234.15,23.776884]
[1733109293299,1.06288658,234.3,234.15,23.776884]
[1733109293501,20.0,234.28,234.15,23.776884]
[1733109293698,1.06288658,234.27,234.15,23.776884]
[1733109295201,1.06288658,234.27,234.13,23.776884]
[1733109295797,1.06288658,234.27,234.11,23.776884]
[1733109295992,1.06288658,234.27,234.13,23.776884]
[1733109300717,1.06288658,234.27,234.11,23.776884]
[1733109301505,1.06288658,234.27,234.11,94.62882529]
[1733109301820,1.06288658,234.27,234.11,93.776884]
[1733109302319,1.06288658,234.27,234.11,23.776884]
[1733109302896,1.06288658,234.27,234.11,24.62882549]
[1733109303899,1.06288658,234.27,234.11,94.62882549]
[1733109304097,1.06288658,234.27,234.11,93.776884]
[1733109305104,1.06288658,234.27,234.14,70.0]
[1733109305303,1.06288658,234.27,234.16,23.776884]
[1733109307340,1.06288658,234.27,234.15,0.85171463]
[1733109310736,1.06288658,234.27,234.11,70.85174922]
[1733109311734,1.06288658,234.27,234.14,70.0]
[1733109311926,1.06288658,234.27,234.15,0.85174233]
[1733109312742,1.06288658,234.27,234.11,0.85174528]
[1733109313135,23.776884,234.26,234.11,0.85174528]
[1733109313338,1.06288658,234.25,234.11,0.85174528]
[1733109313549,55.131684,234.22,234.05,70.0]
[1733109313754,1.06288658,234.21,234.06,0.85204764]
[1733109313958,20.0,234.17,234.04,30.8147]
[1733109314130,24.83977058,234.16,234.05,0.85215551]
[1733109314331,17.1487094,234.16,234.03,13.19886126]
[1733109316760,23.776884,234.18,234.03,13.19886126]
[1733109318350,23.776884,234.18,234.06,70.0]
[1733109318553,23.776884,234.18,234.07,0.85200156]
[1733109320729,23.776884,234.18,234.04,0.85205714]
[1733109321343,23.776884,234.18,234.03,82.3467]
[1733109321540,20.0,234.15,234.0,0.85211248]
[1733109321756,23.776884,234.13,233.99,100.8147]
[1733109322943,20.0,234.14,233.99,100.8147]
[1733109323358,23.776884,234.13,233.99,100.8147]
[1733109323557,54.407484,234.13,233.99,30.8147]
[1733109324957,20.0,234.1,233.92,70.0]
[1733109325163,20.0,234.06,233.89,42.6543]
[1733109325358,23.776884,234.05,233.9,0.85262242]
[1733109326379,20.0,234.04,233.9,0.85262242]
[1733109326591,56.802584,234.03,233.89,42.6543]
[1733109326888,23.776884,233.99,233.83,112.8756]
[1733109327058,23.776884,233.99,233.84,0.85287141]
[1733109327059,20.0,233.96,233.84,0.85287141]
[1733109327249,20.0,233.96,233.83,42.8756]
[1733109327457,23.776884,233.95,233.83,12.495]
[1733109327976,23.776884,233.95,233.81,0.85294302]
[1733109329676,30.5183,233.91,233.81,0.85294302]
[1733109329876,20.0,233.88,233.8,0.4804653]
[1733109330595,23.776884,233.87,233.8,0.4804653]
[1733109331591,23.776884,233.83,233.8,0.4804653]
[1733109331763,20.0,233.81,233.8,0.4804653]
[1733109332769,23.776884,233.9,233.8,0.4804653]
[1733109332972,20.0,233.87,233.8,0.4804653]
[1733109333276,20.0,233.88,233.8,0.4804653]
[1733109333678,20.0,233.84,233.8,0.4804653]
[1733109334060,30.5183,233.91,233.8,0.4804653]
[1733109334264,20.0,233.88,233.8,0.4804653]
[1733109338573,20.0,233.84,233.8,0.4804653]
[1733109340795,35.5183,233.91,233.8,0.4804653]
[1733109340796,23.776884,233.83,233.8,0.4804653]
[1733109340983,20.0,233.81,233.8,0.4804653]
[1733109341491,20.0,233.88,233.8,0.4804653]
[1733109342692,23.776884,233.87,233.8,0.4804653]
[1733109344681,20.0,233.88,233.8,0.4804653]
[1733109344870,23.776884,233.87,233.8,0.4804653]
[1733109345069,20.0,233.84,233.8,0.4804653]
[1733109345298,43.776884,233.81,233.8,0.4804653]
[1733109345499,23.776884,233.81,233.8,0.4804653]
[1733109346083,20.0,233.88,233.8,0.4804653]
[1733109346288,23.776884,233.87,233.8,0.4804653]
[1733109346594,20.0,233.84,233.8,0.4804653]
[1733109346794,43.776884,233.81,233.8,0.4804653]
[1733109347319,87.207684,233.81,233.8,0.4804653]
[1733109349400,87.207684,233.81,233.72,68.75]
[1733109349401,5.0,233.76,233.72,68.75]
[1733109349699,20.0,233.73,233.72,68.75]
[1733109350072,43.776884,233.73,233.72,68.75]
[1733109351291,56.183184,233.73,233.72,7.8657]
[1733109351493,61.183184,233.73,233.72,7.8657]
[1733109352277,28.776884,233.72,233.71,0.48312672]
[1733109352497,48.776884,233.69,233.68,30.11370423]
[1733109352684,23.776884,233.69,233.68,30.11370423]
[1733109352880,5.0,233.77,233.68,30.11370423]
[1733109353274,10.0,233.79,233.68,30.11370423]
[1733109353885,42.8874,233.8,233.68,30.11370423]
[1733109354403,12.3081,233.8,233.68,30.11370423]
[1733109354780,5.0,233.84,233.68,30.11370423]
[1733109354981,30.8201,233.85,233.68,30.11370423]
[1733109355183,35.8201,233.85,233.68,30.11370423]
[1733109356705,23.776884,233.84,233.68,30.11370423]
[1733109356906,5.0,233.8,233.68,30.11370423]
[1733109357306,20.0,233.76,233.68,30.11370423]
[1733109357688,23.776884,233.75,233.68,30.11370423]
[1733109358698,20.0,233.72,233.68,30.11370423]
[1733109359290,23.776884,233.71,233.68,30.11370423]
[1733109360989,23.776884,233.8,233.68,30.11370423]
[1733109362205,20.0,233.77,233.68,30.11370423]
[1733109362509,43.776884,233.8,233.68,30.11370423]
[1733109362706,20.0,233.77,233.68,30.11370423]
[1733109363005,20.0,233.73,233.68,30.11370423]
[1733109363192,23.776884,233.72,233.68,30.11370423]
[1733109363390,43.776884,233.69,233.68,30.11370423]
[1733109364978,49.63649656,233.69,233.68,30.11370423]
[1733109365199,43.776884,233.69,233.68,30.11370423]
[1733109369600,10.0,233.83,233.68,30.11370423]
[1733109369778,5.0,233.8,233.68,30.11370423]
[1733109370382,10.0,233.8,233.68,30.11370423]
[1733109370607,44.0783,233.85,233.68,30.11370423]
[1733109370608,5.0,233.77,233.68,30.11370423]
[1733109370814,20.0,233.73,233.68,30.11370423]
[1733109371000,20.0,233.69,233.68,30.11370423]
[1733109371521,23.776884,233.69,233.68,30.11370423]
[1733109371821,5.0,233.81,233.68,30.11370423]
[1733109372188,5.0,233.83,233.68,30.11370423]
[1733109372488,37.0201,233.85,233.7,13.0393]
[1733109372891,32.0201,233.85,233.7,13.0393]
[1733109373826,20.0,233.82,233.7,13.0393]
[1733109374293,20.0,233.81,233.7,13.0393]
[1733109374492,23.776884,233.8,233.7,13.0393]
[1733109374713,20.0,233.73,233.69,32.6525]
[1733109375423,20.0,233.69,233.68,30.11370423]
[1733109375922,43.776884,233.69,233.68,9.13141223]
[1733109380518,23.776884,233.69,233.68,9.13141223]
[1733109380735,12.2533,233.82,233.68,9.13141223]
[1733109381228,10.0,233.85,233.69,32.2884]
[1733109381721,5.0,233.85,233.69,32.2884]
[1733109382099,5.0,233.9,233.69,32.2884]
[1733109383118,5.0,233.91,233.69,32.2884]
[1733109383303,5.0,233.87,233.69,32.2884]
[1733109383809,10.0,233.87,233.69,32.2884]
[1733109384623,43.776884,233.86,233.69,32.2884]
[1733109387999,5.0,233.91,233.69,59.7236904]
[1733109388199,5.0,233.91,233.71,4.25212562]
[1733109388505,10.0,233.93,233.73,4.25212562]
[1733109389011,10.0,233.93,233.72,4.25298297]
[1733109389211,20.0,233.89,233.72,4.25298297]
[1733109389444,23.776884,233.84,233.71,4.25298297]
[1733109389636,20.0,233.81,233.71,4.25298297]
[1733109390337,20.0,233.92,233.72,45.7454]
[1733109390539,20.0,233.92,233.73,0.85332129]
[1733109390720,20.0,233.92,233.73,4.25298297]
[1733109391435,17.118397,233.95,233.74,4.25298297]
[1733109391829,23.776884,233.94,233.74,4.25298297]
[1733109392026,17.118397,233.95,233.74,4.25298297]
[1733109392234,17.118397,233.95,233.75,45.7454]
[1733109392438,10.0,234.0,233.77,45.7454]
[1733109392741,17.116313,233.98,233.77,49.99838297]
[1733109392919,5.0,233.97,233.78,4.25298297]
[1733109393247,10.0,233.97,233.77,45.7454]
[1733109393728,20.0,233.94,233.77,45.7454]
[1733109393916,20.0,233.9,233.77,45.7454]
[1733109394117,23.776884,233.89,233.77,45.7454]
[1733109394320,20.0,233.86,233.77,45.7454]
[1733109395522,20.0,233.89,233.77,45.7454]
[1733109396035,23.776884,233.88,233.77,45.7454]
[1733109396231,20.0,233.85,233.77,45.7454]
[1733109396432,20.0,233.81,233.77,45.7454]
[1733109400433,20.0,233.88,233.73,4.24956141]
[1733109400628,20.0,233.84,233.71,31.5967]
[1733109400954,20.0,233.8,233.71,31.5967]
[1733109401444,20.0,233.76,233.71,31.5967]
[1733109401623,23.776884,233.9,233.71,31.5967]
[1733109401824,20.0,233.87,233.71,31.5967]
[1733109402249,20.0,233.83,233.71,31.5967]
[1733109402627,20.0,233.79,233.71,31.5967]
[1733109402944,20.0,233.75,233.71,31.5967]
[1733109403145,20.0,233.72,233.71,31.5967]
[1733109403831,20.0,233.71,233.68,9.13141223]
[1733109404049,23.776884,233.7,233.68,9.13141223]
[1733109404249,20.0,233.71,233.68,9.13141223]
[1733109404457,23.776884,233.7,233.68,9.13141223]
[1733109406557,5.0,233.85,233.68,9.13141223]
[1733109407242,10.0,233.87,233.68,9.13141223]
[1733109407437,5.0,233.8,233.68,9.13141223]
[1733109407752,20.0,233.79,233.68,9.13141223]
[1733109407962,20.0,233.78,233.68,9.13141223]
[1733109408544,23.776884,233.77,233.68,9.13141223]
[1733109408759,20.0,233.78,233.68,9.13141223]
[1733109409554,20.0,233.74,233.68,9.13141223]
[1733109409867,23.776884,233.69,233.68,9.13141223]
[1733109421872,20.0,233.7,233.68,9.13141223]
[1733109422175,17.132861,233.72,233.68,9.13141223]
[1733109423261,20.0,233.69,233.68,9.13141223]
[1733109423462,43.776884,233.69,233.68,9.13141223]
[1733109425561,17.132861,233.72,233.68,9.13141223]
[1733109426574,22.132861,233.72,233.68,9.13141223]
[1733109426772,20.0,233.69,233.68,9.13141223]
[1733109427074,43.776884,233.69,233.68,9.13141223]
[1733109428276,20.0,233.69,233.68,9.13141223]
[1733109428463,17.132861,233.72,233.68,9.13141223]
[1733109428850,37.8501,233.78,233.68,9.13141223]
[1733109429173,17.131934,233.77,233.68,9.13141223]
[1733109430651,20.0,233.73,233.68,9.13141223]
[1733109430880,43.776884,233.69,233.68,9.13141223]
[1733109433353,5.0,233.81,233.68,9.13141223]
[1733109433653,17.130388,233.78,233.68,9.13141223]
[1733109433853,5.0,233.81,233.68,9.13141223]
[1733109434267,17.129379,233.8,233.68,9.13141223]
[1733109434666,20.0,233.77,233.68,9.13141223]
[1733109434878,20.0,233.73,233.68,9.13141223]
[1733109435178,23.776884,233.72,233.68,9.13141223]
[1733109435386,23.776884,233.72,233.69,32.3839]
[1733109435682,20.0,233.7,233.69,32.3839]
[1733109438970,43.776884,233.69,233.68,9.13141223]
[1733109440359,20.0,233.69,233.68,9.13141223]
[1733109442266,5.0,233.84,233.68,54.61491223]
[1733109442472,17.127868,233.81,233.68,54.61491223]
[1733109442787,5.0,233.85,233.68,54.61491223]
[1733109442967,17.126544,233.83,233.68,54.61491223]
[1733109443673,20.0,233.8,233.68,54.61491223]
[1733109444169,23.776884,233.79,233.68,54.61491223]
[1733109444476,20.0,233.76,233.68,54.61491223]
[1733109444679,20.0,233.72,233.68,54.61491223]
[1733109445297,20.0,233.8,233.68,54.61491223]
[1733109445472,20.0,233.76,233.68,54.61491223]
[1733109446395,20.0,233.81,233.68,9.13141223]
[1733109446682,20.0,233.76,233.68,9.13141223]
[1733109446894,20.0,233.72,233.68,9.13141223]
[1733109447182,5.0,233.83,233.68,9.13141223]
[1733109447183,20.0,233.69,233.68,9.13141223]
[1733109449283,17.126088,233.84,233.68,9.13141223]
[1733109449485,17.126088,233.84,233.69,32.8133]
[1733109450389,5.0,233.8,233.68,9.13141223]
[1733109450567,10.0,233.82,233.68,9.13141223]
[1733109450764,23.776884,233.78,233.68,9.13141223]
[1733109450964,20.0,233.75,233.68,9.13141223]
[1733109451371,20.0,233.71,233.68,9.13141223]
[1733109452414,17.126088,233.84,233.69,32.1215]
[1733109452594,17.126088,233.84,233.7,13.0642]
[1733109453872,20.0,233.8,233.7,13.0642]
[1733109454073,31.3495,233.88,233.7,13.0642]
[1733109454381,17.124634,233.86,233.7,13.0642]
[1733109454570,5.0,233.89,233.7,13.0642]
[1733109454978,22.123808,233.89,233.7,13.0642]
[1733109455388,5.0,233.83,233.69,32.1215]
[1733109455692,20.0,233.81,233.69,32.1215]
[1733109455986,20.0,233.77,233.69,30.6648]
[1733109456187,5.0,233.79,233.68,9.13141223]
[1733109456188,20.0,233.73,233.68,9.13141223]
[1733109456372,20.0,233.69,233.68,9.13141223]
[1733109456871,23.776884,233.72,233.68,9.13141223]
[1733109457070,20.0,233.78,233.68,9.13141223]
[1733109457489,23.776884,233.77,233.68,9.13141223]
[1733109457695,20.0,233.74,233.68,9.13141223]
[1733109458991,20.0,233.74,233.69,31.1654]
[1733109461570,5.0,233.82,233.69,31.1654]
[1733109461571,20.0,233.7,233.69,31.1654]
[1733109464383,23.776884,233.87,233.69,31.1654]
[1733109464584,5.0,233.86,233.69,31.1654]
[1733109464897,23.776884,233.85,233.68,9.13141223]
[1733109465095,23.776884,233.78,233.68,9.13141223]
[1733109465283,23.776884,233.8,233.68,9.13141223]
[1733109465912,23.776884,233.72,233.68,9.13141223]
[1733109466276,20.0,233.69,233.68,9.13141223]
[1733109467695,43.776884,233.69,233.68,9.13141223]
[1733109469096,48.776884,233.69,233.68,9.13141223]
[1733109469491,48.51800555,233.69,233.68,9.13141223]
[1733109470209,61.49920555,233.69,233.68,8.15791223]
[1733109471404,61.49920555,233.69,233.62,68.75]
[1733109471405,33.776884,233.63,233.62,68.75]
[1733109472104,28.776884,233.63,233.62,68.75]
[1733109472595,33.776884,233.63,233.62,68.75]
[1733109472781,28.776884,233.63,233.62,68.75]
[1733109473183,23.776884,233.63,233.62,68.75]
[1733109473980,20.0,233.63,233.62,68.75]
[1733109474173,5.0,233.67,233.62,68.75]
[1733109474786,5.0,233.64,233.62,68.75]
[1733109475099,5.0,233.65,233.62,68.75]
[1733109475411,5.0,233.67,233.62,68.75]
[1733109475704,20.0,233.64,233.62,68.75]
[1733109475900,5.0,233.65,233.62,68.75]
[1733109476085,23.776884,233.64,233.62,68.75]
[1733109476405,20.0,233.66,233.62,68.75]
[1733109476706,5.0,233.7,233.62,68.75]
[1733109477510,5.0,233.67,233.62,68.75]
[1733109478303,23.776884,233.66,233.62,68.75]
[1733109478509,5.0,233.63,233.62,68.75]
[1733109478808,28.776884,233.63,233.62,68.75]
[1733109479005,23.776884,233.63,233.62,68.75]
[1733109479501,28.776884,233.63,233.62,68.75]
[1733109479700,23.776884,233.63,233.62,68.75]
[1733109480911,5.0,233.69,233.62,68.75]
[1733109480912,5.0,233.73,233.62,68.75]
[1733109481505,214.08025108,233.71,233.62,68.75]
[1733109483704,20.0,233.67,233.62,68.75]
[1733109484512,20.0,233.68,233.62,68.75]
[1733109484815,20.0,233.64,233.62,68.75]
[1733109485322,23.776884,233.63,233.62,68.75]
[1733109486788,23.776884,233.63,233.4,73.75]
[1733109486789,28.776884,233.52,233.51,1.25981029]
[1733109486993,23.776884,233.52,233.51,1.25981029]
[1733109487297,28.776884,233.52,233.51,1.25981029]
[1733109488219,5.0,233.5,233.4,68.75]
[1733109488388,5.0,233.58,233.41,44.0198]
[1733109488587,10.0,233.58,233.41,44.0198]
[1733109488809,5.0,233.56,233.41,44.0198]
[1733109489187,5.0,233.58,233.41,44.0198]
[1733109489388,214.08025108,233.59,233.41,44.0198]
[1733109489689,5.0,233.58,233.41,44.0198]
[1733109490393,25.0,233.56,233.41,44.0198]
[1733109492921,5.0,233.52,233.41,44.0198]
[1733109493216,25.0,233.52,233.41,44.0198]
[1733109493421,20.0,233.52,233.41,44.0198]
[1733109497294,20.0,233.49,233.41,44.0198]
[1733109497918,25.0,233.52,233.41,44.0198]
[1733109498292,1.7814759,233.55,233.41,44.0198]
[1733109498512,20.0,233.56,233.41,44.0198]
[1733109503427,215.9420424,233.59,233.41,44.0198]
[1733109504710,20.0,233.56,233.41,44.0198]
[1733109512449,215.9420424,233.59,233.42,44.4381]
[1733109512612,215.9420424,233.59,233.43,44.4381]
[1733109513537,215.4420424,233.59,233.43,44.4381]
[1733109513835,1.86179132,233.59,233.44,12.8407]
[1733109514038,224.08025108,233.68,233.45,31.6659]
[1733109514633,219.08025108,233.68,233.46,12.448]
[1733109514938,214.08025108,233.68,233.46,12.448]
[1733109515137,219.08025108,233.68,233.46,12.448]
[1733109515441,214.08025108,233.68,233.48,30.5746]
[1733109515733,214.08025108,233.68,233.49,12.1217]
[1733109516126,20.0,233.65,233.49,12.1217]
[1733109517635,215.86332118,233.68,233.5,31.3163]
[1733109518839,215.86332118,233.68,233.51,13.0535]
[1733109519415,215.86332118,233.68,233.52,32.8696]
[1733109520740,20.0,233.65,233.52,32.8696]
[1733109521734,1.7830701,233.68,233.52,32.8696]
[1733109522041,214.08025108,233.77,233.56,43.1215]
[1733109522239,1.83509467,233.77,233.6,23.776884]
[1733109522441,6.63946342,233.84,233.61,12.655]
[1733109522618,1.78043228,233.84,233.61,12.655]
[1733109522821,5.0,233.84,233.61,12.655]
[1733109523438,5.0,233.81,233.61,12.655]
[1733109523633,5.0,233.8,233.61,12.655]
[1733109524025,69.4,233.81,233.61,12.655]
[1733109524221,20.0,233.8,233.61,12.655]
[1733109526131,25.0,233.8,233.61,12.655]
[1733109526338,20.0,233.8,233.62,32.0215]
[1733109527246,5.0,233.84,233.62,32.0215]
[1733109527464,20.0,233.81,233.62,32.0215]
[1733109528046,20.0,233.82,233.62,32.0215]
[1733109528949,32.74167618,233.85,233.63,13.1958]
[1733109529143,1.80627618,233.85,233.64,44.3668]
[1733109529327,214.08025108,233.86,233.64,44.3668]
[1733109530048,20.0,233.83,233.66,12.5049]
[1733109530226,214.08025108,233.86,233.68,12.6551]
[1733109530545,214.08025108,233.86,233.69,32.2515]
[1733109531045,215.88390874,233.86,233.69,32.2515]
[1733109532540,20.0,233.83,233.69,32.2515]
[1733109535825,25.0,233.83,233.69,23.63971701]
[1733109536327,25.0,233.81,233.69,23.63971701]
[1733109536948,25.0,233.81,233.69,9.15831608]
[1733109537131,20.0,233.8,233.69,9.15831608]
[1733109537650,30.0,233.81,233.69,9.15831608]
[1733109537946,27.5,233.81,233.69,9.15831608]
[1733109538939,27.5,233.81,233.68,12.6551]
[1733109539340,20.0,233.8,233.68,12.6551]
[1733109539646,22.5,233.8,233.68,12.6551]
[1733109540555,20.0,233.74,233.65,30.8741]
[1733109542957,20.0,233.74,233.62,12.0838]
[1733109544038,20.0,233.74,233.63,2.5]
[1733109544569,20.0,233.74,233.62,12.0838]
[1733109545553,20.0,233.73,233.62,12.0838]
[1733109545762,20.0,233.73,233.62,5.07333946]
[1733109545937,22.5,233.73,233.62,5.07333946]
[1733109546140,27.5,233.73,233.62,5.07333946]
[1733109546858,20.0,233.73,233.62,5.07333946]
[1733109547059,246.86185108,233.77,233.62,5.07333946]
[1733109547060,21.84772765,233.74,233.62,5.07333946]
[1733109547353,20.0,233.74,233.63,2.5]
[1733109547550,20.0,233.74,233.62,5.07333946]
[1733109547752,20.0,233.74,233.63,2.5]
[1733109548152,20.0,233.74,233.62,5.07333946]
[1733109548358,21.82648106,233.74,233.62,5.07333946]
[1733109548538,21.82648106,233.74,233.62,7.57333946]
[1733109549643,21.82648106,233.74,233.63,2.5]
[1733109550561,1.82648106,233.74,233.66,2.5]
[1733109550867,214.08025108,233.77,233.66,2.5]
[1733109551235,214.08025108,233.77,233.68,2.5]
[1733109552465,215.86178646,233.77,233.68,2.5]
[1733109552875,20.0,233.74,233.68,2.5]
[1733109553445,20.0,233.74,233.7,2.5]
[1733109555648,20.0,233.74,233.72,2.5]
[1733109556054,1.78153538,233.77,233.72,2.5]
[1733109556366,214.08025108,233.86,233.72,2.5]
[1733109556367,214.08025108,233.86,233.75,2.5]
[1733109556551,214.08025108,233.86,233.73,2.5]
[1733109556748,214.08025108,233.86,233.79,2.5]
[1733109557073,215.89249109,233.86,233.79,2.5]
[1733109557453,215.89249109,233.86,233.72,13.2205]
[1733109557454,215.89249109,233.86,233.82,2.5]
[1733109558172,20.0,233.83,233.8,2.5]
[1733109558752,20.0,233.83,233.82,2.5]
[1733109558965,20.0,233.83,233.72,13.2205]
[1733109558966,20.0,233.83,233.8,2.5]
[1733109559669,20.0,233.83,233.78,2.5]
[1733109559976,20.0,233.83,233.72,13.2205]
[1733109559977,20.0,233.78,233.64,13.3195]
[1733109560561,20.0,233.8,233.64,13.3195]
[1733109561862,20.0,233.83,233.64,13.3195]
[1733109563574,21.83067619,233.83,233.64,13.3195]
[1733109565274,20.0,233.82,233.64,13.3195]
[1733109565477,20.0,233.8,233.64,1.62538644]
[1733109565668,20.0,233.73,233.64,1.62538644]
[1733109568579,20.0,233.73,233.56,12.4581]
[1733109569476,21.77206196,233.73,233.56,12.4581]
[1733109569666,20.0,233.72,233.56,12.4581]
[1733109569852,20.0,233.7,233.56,12.4581]
[1733109570483,20.0,233.71,233.56,12.4581]
[1733109570663,20.0,233.72,233.56,12.4581]
[1733109570976,20.0,233.71,233.56,12.4581]
[1733109571180,20.0,233.7,233.56,12.4581]
[1733109572866,20.0,233.71,233.56,12.4581]
[1733109573289,20.0,233.7,233.56,12.4581]
[1733109573488,20.0,233.71,233.56,12.4581]
[1733109574475,20.0,233.71,233.56,6.47522421]
[1733109574676,20.0,233.68,233.67,0.30867164]
[1733109575582,69.4,233.71,233.33,70.0]
[1733109575583,20.0,233.62,233.35,5.0]
[1733109575765,94.4,233.62,233.31,0.8545666]
[1733109575960,94.4,233.62,233.33,5.0]
[1733109576320,89.4,233.62,233.33,5.85464384]
[1733109577091,89.4,233.62,233.35,5.85459737]
[1733109577599,69.4,233.62,233.41,12.2715]
[1733109578601,69.4,233.62,233.42,32.0347]
[1733109578915,20.0,233.59,233.42,32.0347]
[1733109580302,17.148625,233.58,233.42,32.0347]
[1733109580476,20.0,233.55,233.42,32.0347]
[1733109582082,17.148625,233.58,233.42,32.0347]
[1733109583303,20.0,233.55,233.42,32.0347]
[1733109589396,20.0,233.54,233.42,32.0347]
[1733109589595,20.0,233.53,233.42,26.70780027]
[1733109589805,20.0,233.54,233.42,26.70780027]
[1733109594096,1.8544208,233.55,233.42,26.70780027]
[1733109594291,214.08025108,233.57,233.42,26.70780027]
[1733109595188,20.0,233.54,233.42,26.70780027]
[1733109598993,20.0,233.55,233.42,26.70780027]
[1733109599301,1.84632273,233.57,233.42,26.70780027]
[1733109599505,17.148625,233.58,233.42,26.70780027]
[1733109600393,20.0,233.55,233.42,26.70780027]
[1733109604601,20.0,233.55,233.53,0.17483231]
[1733109605687,20.0,233.54,233.53,0.17483231]
[1733109609713,20.0,233.54,233.42,26.70780027]
[1733109609910,20.0,233.53,233.42,26.70780027]
[1733109610911,20.0,233.53,233.42,24.51999005]
[1733109611314,20.0,233.53,233.41,12.2715]